Workbook

Sheet 讲课面试成绩公示表
A1: 附件
A2: 南充文化旅游职业学院2025年第一批公开招聘员额人员 考试成绩及排名
A3: 监督员（签字）： 计分员（签字）： 年 月 日
A4: 序号 | B4: 姓名 | C4: 性别 | D4: 报考岗位 | E4: 考室号 | F4: 抽签号 | G4: 面试成绩 | H4: 总成绩 | I4: 名次 | J4: 备注
A5: 1 | B5: 邓家玲 | C5: 女 | D5: 1研学旅行管理与服务专任教师 | E5: 1 | F5: 2 | G5: 84.97 | H5: =G5 -> 84.97 | I5: 1
A6: 2 | B6: 宁晨 | C6: 男 | D6: 1研学旅行管理与服务专任教师 | E6: 1 | F6: 1 | G6: 82.38 | H6: =G6 -> 82.38 | I6: 2
A7: 3 | B7: 陈亚兰 | C7: 女 | D7: 7酒店管理专任教师 | E7: 1 | F7: 2 | G7: 89.03 | H7: =G7 -> 89.03 | I7: =RANK(H7,$H$7:$H$24) -> 1
A8: 4 | B8: 孙雅 | C8: 女 | D8: 7酒店管理专任教师 | E8: 1 | F8: 16 | G8: 87.46 | H8: =G8 -> 87.46 | I8: =RANK(H8,$H$7:$H$24) -> 2
A9: 5 | B9: 赵婧妤 | C9: 女 | D9: 7酒店管理专任教师 | E9: 1 | F9: 18 | G9: 84.90 | H9: =G9 -> 84.90 | I9: =RANK(H9,$H$7:$H$24) -> 3
A10: 6 | B10: 殷国特 | C10: 男 | D10: 7酒店管理专任教师 | E10: 1 | F10: 17 | G10: 84.83 | H10: =G10 -> 84.83 | I10: =RANK(H10,$H$7:$H$24) -> 4
A11: 7 | B11: 邱雪梅 | C11: 女 | D11: 7酒店管理专任教师 | E11: 1 | F11: 3 | G11: 84.4 | H11: =G11 -> 84.40 | I11: =RANK(H11,$H$7:$H$24) -> 5
A12: 8 | B12: 曹思源 | C12: 男 | D12: 7酒店管理专任教师 | E12: 1 | F12: 13 | G12: 84.20 | H12: =G12 -> 84.20 | I12: =RANK(H12,$H$7:$H$24) -> 6
A13: 9 | B13: 王佳丽 | C13: 女 | D13: 7酒店管理专任教师 | E13: 1 | F13: 8 | G13: 83.98 | H13: =G13 -> 83.98 | I13: =RANK(H13,$H$7:$H$24) -> 7
A14: 10 | B14: 郭阳意 | C14: 女 | D14: 7酒店管理专任教师 | E14: 1 | F14: 5 | G14: 83.95 | H14: =G14 -> 83.95 | I14: =RANK(H14,$H$7:$H$24) -> 8
A15: 11 | B15: 魏珍 | C15: 女 | D15: 7酒店管理专任教师 | E15: 1 | F15: 9 | G15: 83.42 | H15: =G15 -> 83.42 | I15: =RANK(H15,$H$7:$H$24) -> 9
A16: 12 | B16: 庞钦月 | C16: 女 | D16: 7酒店管理专任教师 | E16: 1 | F16: 14 | G16: 82.17 | H16: =G16 -> 82.17 | I16: =RANK(H16,$H$7:$H$24) -> 10
A17: 13 | B17: 陈攀 | C17: 女 | D17: 7酒店管理专任教师 | E17: 1 | F17: 1 | G17: 81.60 | H17: =G17 -> 81.60 | I17: =RANK(H17,$H$7:$H$24) -> 11
A18: 14 | B18: 唐姜 | C18: 男 | D18: 7酒店管理专任教师 | E18: 1 | F18: 12 | G18: 81.54 | H18: =G18 -> 81.54 | I18: =RANK(H18,$H$7:$H$24) -> 12
A19: 15 | B19: 谢镇溪 | C19: 女 | D19: 7酒店管理专任教师 | E19: 1 | F19: 6 | G19: 80.27 | H19: =G19 -> 80.27 | I19: =RANK(H19,$H$7:$H$24) -> 13
A20: 16 | B20: 李浩 | C20: 男 | D20: 7酒店管理专任教师 | E20: 1 | F20: 10 | G20: 79.08 | H20: =G20 -> 79.08 | I20: =RANK(H20,$H$7:$H$24) -> 14
A21: 17 | B21: 刘明春 | C21: 女 | D21: 7酒店管理专任教师 | E21: 1 | F21: 15 | G21: 78.17 | H21: =G21 -> 78.17 | I21: =RANK(H21,$H$7:$H$24) -> 15
A22: 18 | B22: 钟娅 | C22: 女 | D22: 7酒店管理专任教师 | E22: 1 | F22: - | G22: - | H22: =G22 -> - | I22: - | J22: 缺考
A23: 19 | B23: 黄金 | C23: 女 | D23: 7酒店管理专任教师 | E23: 1 | F23: - | G23: - | H23: =G23 -> - | I23: - | J23: 缺考
A24: 20 | B24: 高佳玉 | C24: 女 | D24: 7酒店管理专任教师 | E24: 1 | F24: - | G24: - | H24: =G24 -> - | I24: - | J24: 缺考
A25: 21 | B25: 廖国丞 | C25: 男 | D25: 2大数据技术/智慧旅游技术应用专任教师 | E25: 2 | F25: 7 | G25: 86.57 | H25: =G25 -> 86.57 | I25: =RANK(H25,$H$25:$H$31) -> 1
A26: 22 | B26: 张成 | C26: 男 | D26: 2大数据技术/智慧旅游技术应用专任教师 | E26: 2 | F26: 1 | G26: 84.80 | H26: =G26 -> 84.80 | I26: 2
A27: 23 | B27: 尹晓凤 | C27: 女 | D27: 2大数据技术/智慧旅游技术应用专任教师 | E27: 2 | F27: 6 | G27: 84.10 | H27: =G27 -> 84.10 | I27: 3
A28: 24 | B28: 安玉钏 | C28: 女 | D28: 2大数据技术/智慧旅游技术应用专任教师 | E28: 2 | F28: 8 | G28: 83.63 | H28: =G28 -> 83.63 | I28: 4
A29: 25 | B29: 唐旭东 | C29: 男 | D29: 2大数据技术/智慧旅游技术应用专任教师 | E29: 2 | F29: 5 | G29: 82.62 | H29: =G29 -> 82.62 | I29: 5
A30: 26 | B30: 李佳 | C30: 女 | D30: 2大数据技术/智慧旅游技术应用专任教师 | E30: 2 | F30: 3 | G30: 82.62 | H30: =G30 -> 82.62 | I30: 5
A31: 27 | B31: 张自瑜 | C31: 女 | D31: 2大数据技术/智慧旅游技术应用专任教师 | E31: 2 | F31: 4 | G31: 81.77 | H31: =G31 -> 81.77 | I31: 7
A32: 28 | B32: 谢丹 | C32: 女 | D32: 2大数据技术/智慧旅游技术应用专任教师 | E32: 2 | F32: - | G32: - | H32: =G32 -> - | J32: 缺考
A33: 29 | B33: 王海琴 | C33: 女 | D33: 22信息技术专任教师 | E33: 2 | F33: 10 | G33: 86.03 | H33: =G33 -> 86.03 | I33: =RANK(H33,$H$33:$H$43) -> 1
A34: 30 | B34: 何海洋 | C34: 男 | D34: 22信息技术专任教师 | E34: 2 | F34: 6 | G34: 85.32 | H34: =G34 -> 85.32 | I34: 2
A35: 31 | B35: 王云 | C35: 女 | D35: 22信息技术专任教师 | E35: 2 | F35: 11 | G35: 85.31 | H35: =G35 -> 85.31 | I35: 3
A36: 32 | B36: 杨萍 | C36: 女 | D36: 22信息技术专任教师 | E36: 2 | F36: 9 | G36: 85.26 | H36: =G36 -> 85.26 | I36: 4
A37: 33 | B37: 曹益春 | C37: 男 | D37: 22信息技术专任教师 | E37: 2 | F37: 5 | G37: 84.33 | H37: =G37 -> 84.33 | I37: 5
A38: 34 | B38: 袁惠娟 | C38: 女 | D38: 22信息技术专任教师 | E38: 2 | F38: 7 | G38: 83.72 | H38: =G38 -> 83.72 | I38: 6
A39: 35 | B39: 冯浩 | C39: 男 | D39: 22信息技术专任教师 | E39: 2 | F39: 4 | G39: 83.49 | H39: =G39 -> 83.49 | I39: 7
A40: 36 | B40: 李杨 | C40: 男 | D40: 22信息技术专任教师 | E40: 2 | F40: 1 | G40: 81.13 | H40: =G40 -> 81.13 | I40: 8
A41: 37 | B41: 李明春 | C41: 女 | D41: 22信息技术专任教师 | E41: 2 | F41: 3 | G41: 80.91 | H41: =G41 -> 80.91 | I41: 9
A42: 38 | B42: 章绮娟 | C42: 女 | D42: 22信息技术专任教师 | E42: 2 | F42: 2 | G42: 79.88 | H42: =G42 -> 79.88 | I42: 10
A43: 39 | B43: 李杰 | C43: 男 | D43: 22信息技术专任教师 | E43: 2 | F43: - | G43: - | H43: =G43 -> - | I43: - | J43: 缺考
A44: 40 | B44: 罗明旭 | C44: 男 | D44: 6中餐烹饪专任教师 | E44: 3 | F44: 1 | G44: 85.03 | H44: =G44 -> 85.03 | I44: 1
A45: 41 | B45: 邓隆成 | C45: 男 | D45: 6中餐烹饪专任教师 | E45: 3 | F45: 2 | G45: - | H45: =G45 -> - | I45: - | J45: 弃考
A46: 42 | B46: 赵瑞雪 | C46: 女 | D46: 8酒店英语专任教师 | E46: 4 | F46: 5 | G46: 87.42 | H46: =G46 -> 87.42 | I46: =RANK(H46,$H$46:$H$53) -> 1
A47: 43 | B47: 胡译丹 | C47: 女 | D47: 8酒店英语专任教师 | E47: 4 | F47: 4 | G47: 86.17 | H47: =G47 -> 86.17 | I47: =RANK(H47,$H$46:$H$53) -> 2
A48: 44 | B48: 肖大军 | C48: 男 | D48: 8酒店英语专任教师 | E48: 4 | F48: 2 | G48: 84.30 | H48: =G48 -> 84.30 | I48: =RANK(H48,$H$46:$H$53) -> 3
A49: 45 | B49: 罗云华 | C49: 男 | D49: 8酒店英语专任教师 | E49: 4 | F49: 3 | G49: 84.17 | H49: =G49 -> 84.17 | I49: =RANK(H49,$H$46:$H$53) -> 4
A50: 46 | B50: 李理 | C50: 女 | D50: 8酒店英语专任教师 | E50: 4 | F50: 7 | G50: 82.84 | H50: =G50 -> 82.84 | I50: =RANK(H50,$H$46:$H$53) -> 5
A51: 47 | B51: 冯静 | C51: 女 | D51: 8酒店英语专任教师 | E51: 4 | F51: 8 | G51: 82.22 | H51: =G51 -> 82.22 | I51: =RANK(H51,$H$46:$H$53) -> 6
A52: 48 | B52: 饶熙 | C52: 女 | D52: 8酒店英语专任教师 | E52: 4 | F52: 1 | G52: 79.80 | H52: =G52 -> 79.80 | I52: =RANK(H52,$H$46:$H$53) -> 7
A53: 49 | B53: 苟成蓓 | C53: 女 | D53: 8酒店英语专任教师 | E53: 4 | F53: - | G53: - | H53: =G53 -> - | I53: - | J53: 缺考
A54: 50 | B54: 李静 | C54: 女 | D54: 13婴幼儿托育专任教师 | E54: 4 | F54: 5 | G54: 86.14 | H54: =G54 -> 86.14 | I54: =RANK(H54,$H$54:$H$59) -> 1
A55: 51 | B55: 陈慧星 | C55: 女 | D55: 13婴幼儿托育专任教师 | E55: 4 | F55: 4 | G55: 85.33 | H55: =G55 -> 85.33 | I55: =RANK(H55,$H$54:$H$59) -> 2
A56: 52 | B56: 何任景 | C56: 女 | D56: 13婴幼儿托育专任教师 | E56: 4 | F56: 2 | G56: 84.13 | H56: =G56 -> 84.13 | I56: =RANK(H56,$H$54:$H$59) -> 3
A57: 53 | B57: 廖佳 | C57: 女 | D57: 13婴幼儿托育专任教师 | E57: 4 | F57: 6 | G57: 83.48 | H57: =G57 -> 83.48 | I57: =RANK(H57,$H$54:$H$59) -> 4
A58: 54 | B58: 刘沚漾 | C58: 女 | D58: 13婴幼儿托育专任教师 | E58: 4 | F58: 1 | G58: 81.64 | H58: =G58 -> 81.64 | I58: =RANK(H58,$H$54:$H$59) -> 5
A59: 55 | B59: 宋红丽 | C59: 女 | D59: 13婴幼儿托育专任教师 | E59: 4 | F59: 3 | G59: 81.46 | H59: =G59 -> 81.46 | I59: =RANK(H59,$H$54:$H$59) -> 6
A60: 56 | B60: 高冰源 | C60: 女 | D60: 15足球专任教师 | E60: 4 | F60: 3 | G60: 86.83 | H60: =G60 -> 86.83 | I60: 1
A61: 57 | B61: 夏璇 | C61: 女 | D61: 15足球专任教师 | E61: 4 | F61: 2 | G61: 80.58 | H61: =G61 -> 80.58 | I61: 2
A62: 58 | B62: 杨丰皓 | C62: 男 | D62: 15足球专任教师 | E62: 4 | F62: - | G62: - | H62: =G62 -> - | J62: 缺考
A63: 59 | B63: 江娜 | C63: 女 | D63: 17数字媒体专任教师1（副高） | E63: 5 | F63: 1 | G63: 88.70 | H63: =G63 -> 88.70 | I63: 1
A64: 60 | B64: 付金娣 | C64: 女 | D64: 17数字媒体专任教师1（副高） | E64: 5 | F64: 2 | G64: 84.30 | H64: =G64 -> 84.30 | I64: 2
A65: 61 | B65: 曹蜀江 | C65: 男 | D65: 18数字媒体专任教师2 | E65: 5 | F65: 5 | G65: 88.30 | H65: =G65 -> 88.30 | I65: =RANK(H65,$H$65:$H$69) -> 1
A66: 62 | B66: 欧俊辰 | C66: 男 | D66: 18数字媒体专任教师2 | E66: 5 | F66: 4 | G66: 86.40 | H66: =G66 -> 86.40 | I66: =RANK(H66,$H$65:$H$69) -> 2
A67: 63 | B67: 尚艾林 | C67: 女 | D67: 18数字媒体专任教师2 | E67: 5 | F67: 2 | G67: 84.70 | H67: =G67 -> 84.70 | I67: =RANK(H67,$H$65:$H$69) -> 3
A68: 64 | B68: 向彦 | C68: 女 | D68: 18数字媒体专任教师2 | E68: 5 | F68: 3 | G68: 83.50 | H68: =G68 -> 83.50 | I68: =RANK(H68,$H$65:$H$69) -> 4
A69: 65 | B69: 张七川 | C69: 男 | D69: 18数字媒体专任教师2 | E69: 5 | F69: - | G69: - | H69: =G69 -> - | I69: - | J69: 缺考
A70: 66 | B70: 周柳明 | C70: 男 | D70: 20融媒体技术与运营专业教师1 | E70: 6 | F70: 1 | G70: 88.40 | H70: =G70 -> 88.40 | I70: =RANK(H70,$H$70:$H$75) -> 1
A71: 67 | B71: 郑佩尧 | C71: 女 | D71: 20融媒体技术与运营专业教师1 | E71: 6 | F71: 2 | G71: 86.30 | H71: =G71 -> 86.30 | I71: =RANK(H71,$H$70:$H$75) -> 2
A72: 68 | B72: 杨思漫 | C72: 女 | D72: 20融媒体技术与运营专业教师1 | E72: 6 | F72: 6 | G72: 85.10 | H72: =G72 -> 85.10 | I72: =RANK(H72,$H$70:$H$75) -> 3
A73: 69 | B73: 宋晨颖 | C73: 女 | D73: 20融媒体技术与运营专业教师1 | E73: 6 | F73: 5 | G73: 83.70 | H73: =G73 -> 83.70 | I73: =RANK(H73,$H$70:$H$75) -> 4
A74: 70 | B74: 蒯洵 | C74: 男 | D74: 20融媒体技术与运营专业教师1 | E74: 6 | F74: 3 | G74: 83.20 | H74: =G74 -> 83.20 | I74: =RANK(H74,$H$70:$H$75) -> 5
A75: 71 | B75: 马宁方 | C75: 女 | D75: 20融媒体技术与运营专业教师1 | E75: 6 | F75: - | G75: - | H75: =G75 -> - | I75: - | J75: 缺考
A76: 72 | B76: 任灵 | C76: 女 | D76: 21融媒体技术与运营专业教师2 | E76: 6 | F76: 1 | G76: 86.50 | H76: =G76 -> 86.50 | I76: =RANK(H76,$H$76:$H$77) -> 1
A77: 73 | B77: 胡垽铵 | C77: 男 | D77: 21融媒体技术与运营专业教师2 | E77: 6 | F77: 2 | G77: 82.40 | H77: =G77 -> 82.40 | I77: =RANK(H77,$H$76:$H$77) -> 2

Sheet 管理工作人员成绩公示表
A1: 附件
A2: 南充文化旅游职业学院2025年第一批公开招聘员额人员 管理工作人员考试成绩及排名
A3: 监督员（签字）： 计分员（签字）： 年 月 日
A4: 序号 | B4: 姓名 | C4: 性别 | D4: 报考岗位 | E4: 考室号 | F4: 抽签号 | G4: 笔试成绩 | H4: 面试成绩 | I4: 总成绩 | J4: 名次 | K4: 备注
A5: 1 | B5: 张静 | C5: 女 | D5: 23采购管理工作人员 | E5: 7 | F5: 1 | G5: 55 | H5: 82.30 | I5: =G5*0.5+H5*0.5 -> 68.65 | J5: 1
A6: 2 | B6: 熊春燕 | C6: 女 | D6: 24财务管理工作人员 | E6: 7 | F6: 3 | G6: 78 | H6: 77.73 | I6: 77.87 | J6: =RANK(I6,$I$6:$I$8) -> 1
A7: 3 | B7: 斯丹 | C7: 女 | D7: 24财务管理工作人员 | E7: 7 | F7: 1 | G7: 70.5 | H7: 82.57 | I7: 76.54 | J7: =RANK(I7,$I$6:$I$8) -> 2
A8: 4 | B8: 满琴 | C8: 女 | D8: 24财务管理工作人员 | E8: 7 | F8: - | G8: 56 | H8: - | I8: - | J8: - | K8: 面试缺考
A9: 5 | B9: 钟山 | C9: 男 | D9: 25行政管理工作人员 | E9: 7 | F9: 13 | G9: 79 | H9: 84.63 | I9: =G9*0.5+H9*0.5 -> 81.82 | J9: =RANK(I9,$I$9:$I$25) -> 1
A10: 6 | B10: 彭慧 | C10: 女 | D10: 25行政管理工作人员 | E10: 7 | F10: 9 | G10: 76.5 | H10: 84.93 | I10: =G10*0.5+H10*0.5 -> 80.72 | J10: =RANK(I10,$I$9:$I$25) -> 2
A11: 7 | B11: 肖天琼 | C11: 女 | D11: 25行政管理工作人员 | E11: 7 | F11: 7 | G11: 77.5 | H11: 83.83 | I11: =G11*0.5+H11*0.5 -> 80.67 | J11: =RANK(I11,$I$9:$I$25) -> 3
A12: 8 | B12: 谢青青 | C12: 女 | D12: 25行政管理工作人员 | E12: 7 | F12: 4 | G12: 79.5 | H12: 81.80 | I12: =G12*0.5+H12*0.5 -> 80.65 | J12: =RANK(I12,$I$9:$I$25) -> 4
A13: 9 | B13: 文茂林 | C13: 女 | D13: 25行政管理工作人员 | E13: 7 | F13: 16 | G13: 78.5 | H13: 82.60 | I13: =G13*0.5+H13*0.5 -> 80.55 | J13: =RANK(I13,$I$9:$I$25) -> 5
A14: 10 | B14: 张杰英 | C14: 女 | D14: 25行政管理工作人员 | E14: 7 | F14: 5 | G14: 77.5 | H14: 83.10 | I14: =G14*0.5+H14*0.5 -> 80.30 | J14: =RANK(I14,$I$9:$I$25) -> 6
A15: 11 | B15: 张杰 | C15: 女 | D15: 25行政管理工作人员 | E15: 7 | F15: 14 | G15: 75 | H15: 83.97 | I15: =G15*0.5+H15*0.5 -> 79.49 | J15: =RANK(I15,$I$9:$I$25) -> 7
A16: 12 | B16: 费森垚 | C16: 女 | D16: 25行政管理工作人员 | E16: 7 | F16: 3 | G16: 72 | H16: 86.07 | I16: =G16*0.5+H16*0.5 -> 79.04 | J16: =RANK(I16,$I$9:$I$25) -> 8
A17: 13 | B17: 林志艳 | C17: 女 | D17: 25行政管理工作人员 | E17: 7 | F17: 15 | G17: 72.5 | H17: 85.47 | I17: =G17*0.5+H17*0.5 -> 78.99 | J17: =RANK(I17,$I$9:$I$25) -> 9
A18: 14 | B18: 曾丹 | C18: 女 | D18: 25行政管理工作人员 | E18: 7 | F18: 12 | G18: 74.5 | H18: 82.93 | I18: =G18*0.5+H18*0.5 -> 78.72 | J18: =RANK(I18,$I$9:$I$25) -> 10
A19: 15 | B19: 梁冬宝 | C19: 男 | D19: 25行政管理工作人员 | E19: 7 | F19: 11 | G19: 72.5 | H19: 83.80 | I19: =G19*0.5+H19*0.5 -> 78.15 | J19: =RANK(I19,$I$9:$I$25) -> 11
A20: 16 | B20: 蒲颖 | C20: 女 | D20: 25行政管理工作人员 | E20: 7 | F20: 8 | G20: 72 | H20: 83.67 | I20: =G20*0.5+H20*0.5 -> 77.84 | J20: =RANK(I20,$I$9:$I$25) -> 12
A21: 17 | B21: 郭登康 | C21: 男 | D21: 25行政管理工作人员 | E21: 7 | F21: 17 | G21: 70 | H21: 83.83 | I21: =G21*0.5+H21*0.5 -> 76.92 | J21: =RANK(I21,$I$9:$I$25) -> 13
A22: 18 | B22: 何艾轩 | C22: 女 | D22: 25行政管理工作人员 | E22: 7 | F22: 2 | G22: 73.5 | H22: 80.07 | I22: =G22*0.5+H22*0.5 -> 76.79 | J22: =RANK(I22,$I$9:$I$25) -> 14
A23: 19 | B23: 毛一帆 | C23: 男 | D23: 25行政管理工作人员 | E23: 7 | F23: 6 | G23: 70.5 | H23: 80.90 | I23: =G23*0.5+H23*0.5 -> 75.70 | J23: =RANK(I23,$I$9:$I$25) -> 15
A24: 20 | B24: 赵文静 | C24: 女 | D24: 25行政管理工作人员 | E24: 7 | F24: 10 | G24: 70 | H24: 79.13 | I24: =G24*0.5+H24*0.5 -> 74.57 | J24: =RANK(I24,$I$9:$I$25) -> 16
A25: 21 | B25: 刘静 | C25: 女 | D25: 25行政管理工作人员 | E25: 7 | F25: - | G25: 70 | H25: - | I25: - | J25: - | K25: 面试缺考
